[Event "World Junior U20 Girls 2018"]
[Site "Gebze"]
[Date "2018.09.07"]
[Round "4"]
[White "Du, Yuxin"]
[Black "Chitlange Sakshi"]
[Result "1/2-1/2"]
[ECO "B17"]
[WhiteElo "2146"]
[BlackElo "2279"]
[Annotator "NA"]
[PlyCount "129"]
[EventDate "2018.09.05"]
[EventType "swiss"]
[EventCountry "TUR"]
[SourceTitle "playchess.com"]
[Source "ChessBase"]
[SourceQuality "1"]
[TimeControl "40/5400+30:1800+30"]

1. e4 {[%emt 0:02:30]} c6 {[%emt 0:00:30]} 2. d4 {[%emt 0:00:30]} d5 {[%emt 0:00:00]} 3. Nc3 {[%emt 0:00:30]} dxe4 {[%emt 0:00:00]} 4. Nxe4 {[%emt 0:00:30]} Nd7 {[%emt 0:00:00]} 5. Nf3 {[%emt 0:04:30]} Ngf6 {[%emt 0:00:00]} 6. Ng3 {[%emt 0:02:30]} e6 {[%emt 0:00:30]} 7. Bd3 {[%emt 0:02:30]} Bd6 {[%emt 0:00:00]} 8. O-O {[%emt 0:00:30]} O-O {[%emt 0:00:00]} 9. Re1 {[%emt 0:01:30]} Qc7 {[%emt 0:00:30]} 10. Qe2 {[%emt 0:05:30]} b6 {[%emt 0:01:30] B17: Caro-Kann: Modern Line (4...Nd7)} (10... c5 11. c3 b6 12. Ne5 Bb7 13. Nh5 Nxh5 14. Qxh5 g6 15. Qe2 cxd4 16. cxd4 Nxe5 17. dxe5 Be7 18. Bh6 {½-½ (32) Barcenilla,R (2518)-Laylo,D (2528) Manila 2011}) 11. c4 {[%emt 0:13:30]} Bb7 {[%emt 0:00:00]} 12. b3 {[%emt 0:00:30]} Bb4 $146 {[%emt 0:13:00]} ({Predecessor:} 12... c5 13. Bb2 a5 14. dxc5 Bxc5 15. Ne5 Bb4 16. Red1 Nxe5 17. Bxe5 Qc6 18. f3 {0-1 (44) Garcia Perez,J (1754)-Melone,A (1881) Fermo 2009}) 13. Bd2 {[%emt 0:09:30]} Bxd2 {[%emt 0:00:00]} 14. Nxd2 {[%emt 0:00:30]} c5 {[%emt 0:03:00]} 15. dxc5 {[%emt 0:00:30]} Nxc5 {[%emt 0:00:30]} 16. Bc2 {[%emt 0:02:30]} Qc6 {[%emt 0:05:30]} 17. f3 {[%emt 0:02:30]} Rad8 {[%emt 0:08:30]} 18. Rad1 {[%emt 0:01:30]} a5 {[%emt 0:03:30]} 19. Nde4 {[%emt 0:02:30]} Nfxe4 {[%emt 0:02:30]} 20. Nxe4 {[%emt 0:00:30]} Nxe4 {[%emt 0:00:30]} 21. Bxe4 {[%emt 0:00:30]} Qc5+ {[%emt 0:00:00]} 22. Qf2 {[%emt 0:04:30]} Qxf2+ {[%emt 0:02:00]} 23. Kxf2 {[%emt 0:00:30]} Bxe4 {[%emt 0:00:00]} 24. Rxd8 {[%emt 0:01:30]} Rxd8 {[%emt 0:00:00]} 25. Rxe4 {[%emt 0:00:00]} Kf8 {[%emt 0:01:30]} 26. Ke2 {[%emt 0:00:00]} Ke7 {[%emt 0:00:30]} 27. a3 {[%emt 0:06:30]} f5 {[%emt 0:06:30]} 28. Re3 {[%emt 0:00:30]} Rc8 {[%emt 0:00:30]} 29. Rd3 {[%emt 0:01:30]} a4 {[%emt 0:00:30]} 30. Kd2 {[%emt 0:00:30]} g5 {[%emt 0:02:30]} 31. Kc3 {[%emt 0:03:30]} axb3 {[%emt 0:03:30]} 32. Kxb3 {[%emt 0:00:30]} Rc5 {[%emt 0:00:00]} 33. Kb4 {[%emt 0:02:30]} e5 {[%emt 0:02:00]} 34. a4 {[%emt 0:00:30]} h5 {[%emt 0:05:30]} 35. h3 {[%emt 0:01:30]} h4 {[%emt 0:11:30]} 36. Rd2 {[%emt 0:05:30]} Ke6 {[%emt 0:07:30]} 37. Rd8 {[%emt 0:00:30]} e4 {[%emt 0:00:30]} 38. fxe4 {[%emt 0:00:30]} fxe4 {[%emt 0:00:30]} 39. Kc3 {[%emt 0:06:49]} Ke5 {[%emt 0:02:30]} 40. Re8+ {[%emt 0:11:43]} Kf4 {[%emt 0:00:00]} 41. Kd4 {[%emt 0:00:00]} Kg3 {[%emt 0:03:00]} 42. Re6 {[%emt 0:05:28]} Kxg2 {[%emt 0:11:30]} 43. Rxb6 {[%emt 0:00:30]} Ra5 {[%emt 0:00:30]} 44. Rb5 {[%emt 0:11:30]} Rxa4 {[%emt 0:10:30]} 45. Rxg5+ {[%emt 0:00:30]} Kxh3 {[%emt 0:00:00]} 46. Kxe4 {[%emt 0:01:11]} Rxc4+ {[%emt 0:00:00]} 47. Kf3 {[%emt 0:00:00]} Rc2 {[%emt 0:02:30]} 48. Rh5 {[%emt 0:03:36]} Ra2 {[%emt 0:00:00]} 49. Rh8 {[%emt 0:00:38]} Ra4 {[%emt 0:01:00]} 50. Rg8 {[%emt 0:02:41]} Kh2 {[%emt 0:01:30]} 51. Rg2+ {[%emt 0:05:02]} Kh1 {[%emt 0:00:30]} 52. Rg4 {[%emt 0:00:16]} Ra3+ {[%emt 0:00:30]} 53. Kf2 {[%emt 0:00:06]} h3 {[%emt 0:00:00]} 54. Rg1+ {[%emt 0:05:19]} Kh2 {[%emt 0:00:00]} 55. Rg8 {[%emt 0:00:00]} Ra2+ {[%emt 0:00:30]} 56. Kf1 {[%emt 0:01:40]} Rg2 {[%emt 0:00:30]} 57. Rh8 {[%emt 0:01:45]} Rg3 {[%emt 0:00:30]} 58. Kf2 {[%emt 0:00:28]} Rg2+ {[%emt 0:00:30]} 59. Kf1 {[%emt 0:00:30]} Rg7 {[%emt 0:00:00]} 60. Rf8 {[%emt 0:00:14]} Ra7 $11 {[%emt 0:03:00]} 61. Rf3 {[%emt 0:00:40]} Ra2 {[%emt 0:02:30]} 62. Rf2+ {[%emt 0:00:12]} Rxf2+ {[%emt 0:00:30]} 63. Kxf2 {[%emt 0:00:30]} Kh1 {[%emt 0:00:00]} 64. Kf1 {[%emt 0:00:06]} h2 {[%emt 0:00:00]} 65. Kf2 {[%emt 0:00:00]} 1/2-1/2

[Event "World Junior U20 Girls 2018"]
[Site "Gebze"]
[Date "2018.09.07"]
[Round "4"]
[White "Wafa, Shahenda"]
[Black "Alinasab, Mobina"]
[Result "0-1"]
[ECO "C13"]
[WhiteElo "2129"]
[BlackElo "2261"]
[Annotator "ChessBase"]
[PlyCount "114"]
[EventDate "2018.09.05"]
[EventType "swiss"]
[EventCountry "TUR"]
[SourceTitle "playchess.com"]
[Source "ChessBase"]
[SourceQuality "1"]
[TimeControl "40/5400+30:1800+30"]

1. e4 {[%emt 0:00:30]} e6 {[%emt 0:00:30]} 2. d4 {[%emt 0:00:30]} d5 {[%emt 0:00:30]} 3. Nc3 {[%emt 0:00:30]} Nf6 {[%emt 0:00:00]} 4. Bg5 {[%emt 0:00:00]} dxe4 {[%emt 0:00:00]} 5. Nxe4 {[%emt 0:00:00]} Be7 {[%emt 0:00:00]} 6. Bxf6 {[%emt 0:00:30]} gxf6 {[%emt 0:00:00]} 7. Nf3 {[%emt 0:02:30]} a6 {[%emt 0:04:30]} 8. Bc4 {[%emt 0:18:30]} b5 {[%emt 0:05:30]} 9. Bb3 {[%emt 0:00:30]} Nd7 {[%emt 0:08:30]} 10. a4 {[%emt 0:08:30]} Rb8 {[%emt 0:19:30]} 11. axb5 {[%emt 0:04:30]} axb5 {[%emt 0:00:00]} 12. d5 {[%emt 0:09:30]} Nc5 {[%emt 0:03:00]} 13. Nxc5 {[%emt 0:01:30]} Bxc5 {[%emt 0:00:30]} 14. Qe2 {[%emt 0:04:30]} e5 {[%emt 0:06:30]} 15. Rd1 {[%emt 0:06:30]} Kf8 {[%emt 0:05:30]} 16. Nd2 {[%emt 0:02:30]} h5 {[%emt 0:07:30]} 17. Ne4 {[%emt 0:02:30]} Be7 {[%emt 0:00:30]} 18. h3 {[%emt 0:04:30]} f5 {[%emt 0:06:30]} 19. Nc3 {[%emt 0:08:30]} b4 {[%emt 0:02:30]} 20. Nb5 {[%emt 0:01:30]} Ba6 {[%emt 0:13:50]} 21. Bc4 {[%emt 0:01:30]} Bxb5 {[%emt 0:00:30]} 22. Bxb5 {[%emt 0:00:30]} Qd6 {[%emt 0:00:00]} 23. Bc4 {[%emt 0:01:30]} h4 {[%emt 0:00:38]} 24. Qf3 {[%emt 0:00:30]} Qf6 {[%emt 0:00:52]} 25. Qe3 {[%emt 0:07:56]} Bd6 {[%emt 0:01:22]} 26. Rg1 {[%emt 0:04:07]} e4 {[%emt 0:00:26]} 27. Qd4 {[%emt 0:04:23]} Be5 {[%emt 0:07:17]} 28. Qc5+ {[%emt 0:00:34]} Kg7 {[%emt 0:00:21]} 29. Ke2 {[%emt 0:03:46]} f4 {[%emt 0:00:59]} 30. Bb3 {[%emt 0:01:11]} Rhe8 {[%emt 0:01:41]} 31. Ba4 {[%emt 0:00:23]} Re7 {[%emt 0:00:42]} 32. f3 {[%emt 0:00:43]} Bd6 {[%emt 0:04:57]} 33. Qd4 {[%emt 0:00:45]} exf3+ {[%emt 0:00:47]} 34. Kxf3 {[%emt 0:00:07]} Re3+ {[%emt 0:00:44]} 35. Kf2 {[%emt 0:00:38]} Qxd4 {[%emt 0:00:00]} 36. Rxd4 {[%emt 0:00:00]} Bc5 {[%emt 0:00:42]} 37. Rc4 {[%emt 0:00:26]} Rc3+ {[%emt 0:00:19]} 38. Rxc5 {[%emt 0:00:08]} Rxc5 {[%emt 0:00:30]} 39. Bb3 {[%emt 0:00:05]} Kf6 {[%emt 0:00:37]} 40. Rd1 {[%emt 0:00:00]} Ke5 {[%emt 0:00:00]} 41. Re1+ {[%emt 0:01:18]} Kf5 {[%emt 0:01:46]} 42. Rd1 {[%emt 0:00:00]} Ra5 {[%emt 0:02:30]} 43. Rd4 {[%emt 0:01:00]} Ra1 {[%emt 0:02:30]} 44. Kf3 {[%emt 0:01:30]} Kg5 {[%emt 0:02:30]} 45. Re4 {[%emt 0:01:30]} f5 {[%emt 0:09:16]} 46. Re7 {[%emt 0:01:30]} Rc8 {[%emt 0:00:10]} 47. Rg7+ {[%emt 0:00:30]} Kf6 {[%emt 0:00:30]} 48. Rh7 {[%emt 0:00:00]} Re8 {[%emt 0:00:29]} 49. Bc4 {[%emt 0:00:00]} Re3+ {[%emt 0:06:39]} 50. Kf2 {[%emt 0:00:30]} Re7 {[%emt 0:04:42]} 51. Rxh4 {[%emt 0:00:30]} Rd1 {[%emt 0:01:46]} 52. Bd3 {[%emt 0:00:30]} Kg5 {[%emt 0:02:41]} 53. Rh8 {[%emt 0:00:00]} Rd2+ {[%emt 0:00:29]} 54. Kf1 {[%emt 0:00:00]} b3 {[%emt 0:00:20]} 55. Rg8+ {[%emt 0:02:30]} Kf6 {[%emt 0:00:50]} 56. Rf8+ {[%emt 0:00:30]} Kg7 {[%emt 0:00:14]} 57. Rxf5 {[%emt 0:01:30]} bxc2 {[%emt 0:00:08]} 0-1

[Event "World Junior U20 Girls 2018"]
[Site "Gebze"]
[Date "2018.09.07"]
[Round "4"]
[White "Serikbay, Assel"]
[Black "Vujcic, Milena"]
[Result "1-0"]
[ECO "E63"]
[WhiteElo "2125"]
[BlackElo "1955"]
[Annotator "NA"]
[PlyCount "47"]
[EventDate "2018.09.05"]
[EventType "swiss"]
[EventCountry "TUR"]
[SourceTitle "playchess.com"]
[Source "ChessBase"]
[SourceQuality "1"]
[TimeControl "40/5400+30:1800+30"]

1. d4 {[%emt 0:00:30]} Nf6 {[%emt 0:00:30]} 2. c4 {[%emt 0:00:30]} g6 {[%emt 0:00:00]} 3. g3 {[%emt 0:00:00]} Bg7 {[%emt 0:00:00]} 4. Bg2 {[%emt 0:00:00]} O-O {[%emt 0:00:30]} 5. Nf3 {[%emt 0:00:30]} d6 {[%emt 0:00:00]} 6. O-O {[%emt 0:00:00]} a6 {[%emt 0:00:00]} 7. Nc3 {[%emt 0:00:00]} Nc6 {[%emt 0:00:30]} 8. e4 {[%emt 0:01:30]} Na5 {[%emt 0:04:30]} 9. Qe2 {[%emt 0:06:30]} c5 {[%emt 0:00:30]} 10. dxc5 {[%emt 0:20:30]} dxc5 {[%emt 0:01:30]} 11. Rd1 {[%emt 0:00:00]} Nd7 {[%emt 0:09:30]} 12. e5 {[%emt 0:06:00]} Nc6 {[%emt 0:10:30]} 13. Bf4 {[%emt 0:07:30]} h6 {[%emt 0:09:30]} 14. h4 {[%emt 0:07:30]} Kh8 {[%emt 0:10:30]} 15. Qe3 {[%emt 0:07:30]} Kh7 {[%emt 0:00:30]} 16. h5 $18 {[%emt 0:01:30]} e6 {[%emt 0:03:30]} 17. Ne4 {[%emt 0:10:30]} Qe7 {[%emt 0:01:30]} 18. Nd6 {[%emt 0:00:30]} Nd4 {[%emt 0:04:30]} 19. Nxd4 {[%emt 0:00:30]} cxd4 {[%emt 0:00:00]} 20. Rxd4 {[%emt 0:00:30]} f5 {[%emt 0:13:00]} 21. exf6 {[%emt 0:03:30]} Qxf6 {[%emt 0:00:30]} 22. hxg6+ {[%emt 0:00:30]} Kh8 {[%emt 0:00:00]} 23. Rd2 {[%emt 0:00:30]} Qxg6 {[%emt 0:01:00]} 24. Nxc8 {[%emt 0:01:30]} 1-0

[Event "World Junior U20 Girls 2018"]
[Site "Gebze"]
[Date "2018.09.07"]
[Round "4"]
[White "Sankova, Stella"]
[Black "Haussernot, Cecile"]
[Result "0-1"]
[ECO "B51"]
[WhiteElo "2081"]
[BlackElo "2237"]
[Annotator "NA"]
[PlyCount "92"]
[EventDate "2018.09.05"]
[EventType "swiss"]
[EventCountry "TUR"]
[SourceTitle "playchess.com"]
[Source "ChessBase"]
[SourceQuality "1"]
[TimeControl "40/5400+30:1800+30"]

1. e4 {[%emt 0:00:30]} c5 {[%emt 0:05:30]} 2. Nf3 {[%emt 0:00:00]} d6 {[%emt 0:00:30]} 3. Bb5+ {[%emt 0:00:00]} Nd7 {[%emt 0:00:30]} 4. d4 {[%emt 0:00:00]} cxd4 {[%emt 0:00:00]} 5. Qxd4 {[%emt 0:00:00]} a6 {[%emt 0:01:00]} 6. Bxd7+ {[%emt 0:00:30]} Bxd7 {[%emt 0:00:30]} 7. c4 {[%emt 0:00:00] B51: Sicilian: Moscow Variation (3 Bb5+) without 3...Bd7} (7. Nc3 e5 8. Qd3 h6 9. Nd2 Rc8 10. Nc4 Be6 11. Ne3 Nf6 12. Bd2 Be7 13. a4 O-O 14. O-O Qd7 15. a5 Rfd8 {½-½ (58) Duda,J (2737)-Nepomniachtchi,I (2757) Dortmund 2018}) 7... Rc8 {[%emt 0:02:30]} 8. Nc3 {[%emt 0:01:00]} b5 {[%emt 0:03:30]} 9. cxb5 {[%emt 0:04:30]} axb5 {[%emt 0:00:30]} 10. O-O {[%emt 0:00:30]} h6 {[%emt 0:08:30]} 11. e5 {[%emt 0:05:30]} Rc4 $146 {[%emt 0:04:30]} ({Predecessor:} 11... Bc6 12. Rd1 Qd7 13. exd6 Qxd6 14. Ne5 b4 {1-0 (37) Queiroz,A (2136)-Arias,D (2196) Asuncion 2014}) 12. Qd3 {[%emt 0:02:30]} Bc6 {[%emt 0:05:30]} (12... d5 $142 13. b3 (13. Qxd5 e6 $16) 13... Rc8 14. Nxb5 (14. Nxd5 Bc6 $16) 14... Bxb5 15. Qxb5+ Qd7) 13. b3 {[%emt 0:13:30]} Rg4 {[%emt 0:01:30]} 14. e6 {[%emt 0:08:30]} Qa8 {[%emt 0:03:30]} 15. Nxb5 {[%emt 0:07:30]} Qb7 {[%emt 0:02:30]} 16. exf7+ {[%emt 0:08:30]} Kxf7 {[%emt 0:01:30]} 17. Nbd4 {[%emt 0:04:30]} ({Much worse is} 17. Qf5+ Nf6 $15) 17... Be4 {[%emt 0:00:30]} 18. Qe2 {[%emt 0:02:30]} e5 {[%emt 0:03:30]} 19. Nxe5+ $14 {[%emt 0:00:30]} dxe5 {[%emt 0:00:30]} 20. Qxg4 {[%emt 0:00:30]} exd4 {[%emt 0:00:00]} 21. f3 {[%emt 0:02:30]} Bd3 {[%emt 0:01:00]} 22. Rd1 {[%emt 0:04:30]} Qb5 {[%emt 0:02:30]} 23. Kh1 {[%emt 0:03:30]} Nf6 {[%emt 0:01:30]} 24. Qxd4 {[%emt 0:02:30]} Be2 {[%emt 0:00:30]} 25. Re1 {[%emt 0:02:30]} Bc5 {[%emt 0:00:30]} 26. Qa4 {[%emt 0:06:30]} Qd3 {[%emt 0:04:30]} 27. Qc4+ {[%emt 0:06:57]} Qxc4 {[%emt 0:00:30]} 28. bxc4 {[%emt 0:00:30]} Re8 {[%emt 0:00:30]} 29. Bd2 {[%emt 0:02:21]} g5 {[%emt 0:04:30]} 30. Rab1 {[%emt 0:06:29]} g4 {[%emt 0:00:30]} 31. fxg4 {[%emt 0:01:06]} Nxg4 {[%emt 0:00:30]} 32. h3 {[%emt 0:01:04]} Nf2+ {[%emt 0:00:30]} 33. Kh2 {[%emt 0:00:30]} Nd3 {[%emt 0:00:30]} 34. Rb7+ {[%emt 0:00:30]} Kg6 {[%emt 0:00:30]} 35. Reb1 {[%emt 0:00:24]} h5 {[%emt 0:00:30]} 36. Bc3 {[%emt 0:00:30]} Rf8 {[%emt 0:00:30]} 37. Rg7+ {[%emt 0:02:19]} Kf5 {[%emt 0:07:30]} 38. g4+ {[%emt 0:01:52]} hxg4 {[%emt 0:02:30]} 39. hxg4+ {[%emt 0:00:08]} Ke4 {[%emt 0:00:30]} 40. Rd7 {[%emt 0:00:00]} Bxg4 {[%emt 0:00:00]} 41. Rd5 {[%emt 0:03:50]} Be3 {[%emt 0:12:00]} 42. Rb7 {[%emt 0:03:30]} Bf4+ {[%emt 0:06:30]} 43. Kg1 {[%emt 0:00:30]} Be2 {[%emt 0:00:30]} 44. a4 {[%emt 0:05:30]} Be3+ {[%emt 0:01:30]} 45. Kh2 {[%emt 0:00:30]} Rf2+ {[%emt 0:00:30]} 46. Kg3 {[%emt 0:00:30]} Bf4+ {[%emt 0:00:00]} 0-1

[Event "World Junior U20 Girls 2018"]
[Site "Gebze"]
[Date "2018.09.07"]
[Round "4"]
[White "Lingur, Zalina"]
[Black "Altantuya, Boldbaatar"]
[Result "0-1"]
[ECO "B81"]
[WhiteElo "2061"]
[BlackElo "2210"]
[Annotator "ChessBase"]
[PlyCount "132"]
[EventDate "2018.09.05"]
[EventType "swiss"]
[EventCountry "TUR"]
[SourceTitle "playchess.com"]
[Source "ChessBase"]
[SourceQuality "1"]
[TimeControl "40/5400+30:1800+30"]

1. e4 {[%emt 0:00:30]} c5 {[%emt 0:04:30]} 2. Nf3 {[%emt 0:00:00]} e6 {[%emt 0:00:30]} 3. d4 {[%emt 0:00:00]} cxd4 {[%emt 0:00:30]} 4. Nxd4 {[%emt 0:00:30]} Nf6 {[%emt 0:00:00]} 5. Nc3 {[%emt 0:00:30]} d6 {[%emt 0:00:00]} 6. g4 {[%emt 0:00:30]} h6 {[%emt 0:01:30]} 7. h3 {[%emt 0:00:30]} Nc6 {[%emt 0:00:30]} 8. Be3 {[%emt 0:00:30]} Bd7 {[%emt 0:00:30]} 9. Qd2 {[%emt 0:00:30]} a6 {[%emt 0:01:30]} 10. O-O-O {[%emt 0:00:30]} Rc8 {[%emt 0:00:30]} 11. f4 {[%emt 0:03:30]} Be7 {[%emt 0:03:30]} 12. Kb1 {[%emt 0:02:30]} b5 {[%emt 0:00:30]} 13. Bd3 {[%emt 0:01:30]} Qc7 {[%emt 0:02:30]} 14. g5 {[%emt 0:03:30]} hxg5 {[%emt 0:10:30]} 15. fxg5 {[%emt 0:00:00]} Nh5 {[%emt 0:00:00]} 16. g6 {[%emt 0:05:00]} f6 {[%emt 0:01:00]} 17. Nxc6 {[%emt 0:32:30]} Bxc6 {[%emt 0:00:30]} 18. Rhg1 {[%emt 0:00:30]} Qb7 {[%emt 0:03:30]} 19. Qe2 {[%emt 0:02:30]} Qa8 {[%emt 0:22:30]} 20. Qg4 {[%emt 0:01:30]} f5 {[%emt 0:07:30]} 21. exf5 {[%emt 0:20:30]} Bf3 {[%emt 0:00:30]} 22. Qd4 {[%emt 0:01:30]} e5 {[%emt 0:00:30]} 23. Qb6 {[%emt 0:02:30]} Bxd1 {[%emt 0:03:30]} 24. Rxd1 {[%emt 0:01:45]} Nf6 {[%emt 0:01:30]} 25. Bg5 {[%emt 0:07:11]} Nd7 {[%emt 0:13:30]} 26. Qe3 {[%emt 0:05:39]} Bxg5 {[%emt 0:01:37]} 27. Qxg5 {[%emt 0:00:40]} Nf6 {[%emt 0:00:23]} 28. h4 {[%emt 0:06:22]} b4 {[%emt 0:01:10]} 29. Na4 {[%emt 0:00:24]} Qc6 {[%emt 0:02:03]} 30. b3 {[%emt 0:00:03]} e4 {[%emt 0:01:10]} 31. Qe3 {[%emt 0:01:05]} Kf8 {[%emt 0:01:58]} 32. Bc4 {[%emt 0:00:37]} d5 {[%emt 0:07:42]} 33. Nb6 {[%emt 0:00:01]} Qc5 {[%emt 0:00:15]} 34. Qxc5+ {[%emt 0:01:31]} Rxc5 {[%emt 0:00:01]} 35. Nxd5 {[%emt 0:00:00]} Nxd5 {[%emt 0:00:29]} 36. Bxd5 {[%emt 0:00:16]} Rxh4 {[%emt 0:00:42]} 37. Be6 {[%emt 0:00:46]} e3 {[%emt 0:07:25]} 38. Re1 {[%emt 0:00:36]} Rc3 {[%emt 0:00:16]} 39. Bc4 {[%emt 0:00:27]} Ke7 {[%emt 0:01:18]} 40. Bd3 {[%emt 0:00:00]} Rh3 {[%emt 0:00:00]} 41. Bxa6 {[%emt 0:03:37]} Rf3 {[%emt 0:03:31]} 42. Bd3 {[%emt 0:00:30]} Kf6 {[%emt 0:00:30]} 43. a3 {[%emt 0:14:17]} bxa3 {[%emt 0:01:30]} 44. Ka2 {[%emt 0:01:05]} Ke5 {[%emt 0:01:30]} 45. f6 {[%emt 0:04:01]} Kxf6 {[%emt 0:00:00]} 46. Be4 {[%emt 0:02:50]} Rf2 {[%emt 0:01:00]} 47. Kxa3 {[%emt 0:00:12]} Ke5 {[%emt 0:00:30]} 48. Kb2 {[%emt 0:03:51]} Kd4 {[%emt 0:01:30]} 49. Bf5 {[%emt 0:03:06]} Rxf5 {[%emt 0:16:39]} 50. Rd1+ {[%emt 0:00:30]} Ke4 {[%emt 0:00:00]} 51. Kxc3 {[%emt 0:00:09]} Rc5+ {[%emt 0:00:20]} 52. Kb2 {[%emt 0:00:47]} e2 {[%emt 0:00:29]} 53. Rh1 {[%emt 0:02:02]} Rf5 {[%emt 0:01:27]} 54. Re1 {[%emt 0:01:00]} Ke3 {[%emt 0:00:08]} 55. c4 {[%emt 0:00:00]} Rf1 {[%emt 0:01:17]} 56. Rxe2+ {[%emt 0:00:41]} Kxe2 {[%emt 0:00:04]} 57. Kc3 {[%emt 0:00:00]} Ke3 {[%emt 0:00:41]} 58. Kb4 {[%emt 0:00:30]} Kd4 {[%emt 0:00:18]} 59. Kb5 {[%emt 0:00:23]} Rf6 {[%emt 0:00:08]} 60. c5 {[%emt 0:00:49]} Kd5 {[%emt 0:00:08]} 61. b4 {[%emt 0:00:18]} Rxg6 {[%emt 0:00:30]} 62. Ka5 {[%emt 0:00:13]} Rf6 {[%emt 0:00:00]} 63. c6 {[%emt 0:01:14]} Kxc6 {[%emt 0:00:00]} 64. Ka6 {[%emt 0:00:12]} g5 {[%emt 0:00:07]} 65. b5+ {[%emt 0:00:13]} Kc7+ {[%emt 0:00:03]} 66. Ka7 {[%emt 0:00:22]} Rb6 {[%emt 0:00:11]} 0-1

[Event "World Junior U20 Girls 2018"]
[Site "Gebze"]
[Date "2018.09.07"]
[Round "4"]
[White "Auvray, Honorine"]
[Black "Unuk, Laura"]
[Result "0-1"]
[ECO "A45"]
[WhiteElo "2050"]
[BlackElo "2299"]
[Annotator "NA"]
[PlyCount "94"]
[EventDate "2018.09.05"]
[EventType "swiss"]
[EventCountry "TUR"]
[SourceTitle "playchess.com"]
[Source "ChessBase"]
[SourceQuality "1"]
[TimeControl "40/5400+30:1800+30"]

1. d4 {[%emt 0:00:30]} Nf6 {[%emt 0:00:30]} 2. Bf4 {[%emt 0:00:00]} e6 {[%emt 0:01:30]} 3. e3 {[%emt 0:00:00]} c5 {[%emt 0:00:00]} 4. c3 {[%emt 0:02:30]} Be7 {[%emt 0:04:00]} 5. Nd2 {[%emt 0:02:30]} O-O {[%emt 0:00:30]} 6. Ngf3 {[%emt 0:08:30]} d5 {[%emt 0:00:30]} 7. Bd3 {[%emt 0:00:30]} b6 {[%emt 0:01:30]} 8. Ne5 {[%emt 0:03:30]} Bb7 {[%emt 0:04:30]} 9. O-O {[%emt 0:00:30]} Ne4 {[%emt 0:07:30]} 10. Qc2 {[%emt 0:14:30]} Nxd2 $11 {[%emt 0:05:30]} 11. Qxd2 {[%emt 0:01:30]} f6 {[%emt 0:01:30]} 12. Nf3 {[%emt 0:00:30]} Ba6 {[%emt 0:08:30]} 13. Rfe1 {[%emt 0:04:30]} Bxd3 {[%emt 0:02:30]} 14. Qxd3 {[%emt 0:00:30]} c4 {[%emt 0:00:00]} 15. Qe2 {[%emt 0:01:30]} f5 {[%emt 0:00:00]} 16. Bxb8 {[%emt 0:10:30]} Rxb8 {[%emt 0:02:30]} 17. Ne5 {[%emt 0:00:30]} Qc7 {[%emt 0:01:30]} 18. a4 {[%emt 0:03:30]} Bd6 {[%emt 0:09:30]} 19. f4 {[%emt 0:01:30]} Bxe5 {[%emt 0:01:30]} 20. dxe5 {[%emt 0:00:30]} Qc5 {[%emt 0:03:30]} 21. Reb1 {[%emt 0:10:30]} Rf7 {[%emt 0:04:30]} 22. Qd2 {[%emt 0:03:30]} b5 {[%emt 0:04:30]} 23. axb5 {[%emt 0:00:30]} Qxb5 {[%emt 0:00:30]} 24. h3 {[%emt 0:08:30]} a5 {[%emt 0:01:30]} 25. Kf2 {[%emt 0:05:23]} Rfb7 {[%emt 0:01:30]} 26. Kf3 {[%emt 0:00:26]} Qc6 {[%emt 0:04:30]} 27. Kf2 {[%emt 0:07:50]} a4 {[%emt 0:00:30]} 28. Ra3 {[%emt 0:00:30]} h6 {[%emt 0:00:30]} 29. Qc2 {[%emt 0:04:16]} Rb3 {[%emt 0:04:30]} 30. Rxb3 {[%emt 0:00:36]} Rxb3 {[%emt 0:00:30]} 31. Ra1 {[%emt 0:00:20]} Qb5 {[%emt 0:06:44]} 32. Ra2 {[%emt 0:00:40]} a3 {[%emt 0:00:05]} 33. bxa3 {[%emt 0:00:14]} Qa5 {[%emt 0:00:43]} 34. a4 {[%emt 0:00:46]} Kf7 {[%emt 0:02:39]} 35. Ke2 {[%emt 0:00:57]} Rxc3 {[%emt 0:05:00]} 36. Qd2 {[%emt 0:02:43]} Qb4 {[%emt 0:00:07]} 37. a5 {[%emt 0:00:27]} Qb3 {[%emt 0:00:15]} 38. a6 {[%emt 0:01:59]} Rd3 {[%emt 0:08:15]} 39. Qa5 {[%emt 0:00:37]} Rxe3+ {[%emt 0:03:04]} 40. Kf2 {[%emt 0:00:00]} Re4 {[%emt 0:00:00]} 41. Kg1 {[%emt 0:11:46]} Qg3 {[%emt 0:13:38]} 42. a7 {[%emt 0:06:47]} c3 {[%emt 0:00:30]} 43. Qxc3 {[%emt 0:03:23]} Qxc3 {[%emt 0:00:30]} 44. a8=Q {[%emt 0:00:10]} Qc1+ {[%emt 0:00:53]} 45. Kh2 {[%emt 0:00:17]} Qxf4+ {[%emt 0:00:43]} 46. g3 {[%emt 0:00:20]} Qxe5 {[%emt 0:00:00]} 47. Ra7+ {[%emt 0:00:52]} Kg6 {[%emt 0:00:26]} 0-1